fUSD/lending_fUSD_20240204
["ID","MTS","AMOUNT","RATE_DAILY","PERIOD"]
[313244407,1707006651835,-19783.0,0.00030335,2]
[313244408,1707006651845,-1232.0,0.00030335,2]
[313244409,1707006651854,-167.0,0.00030335,2]
[313244410,1707006651864,-58000.0,0.00030623,3]
[313244411,1707006651874,-58000.0,0.00030631,3]
[313244412,1707006651883,-150.0,0.00030714,2]
[313244413,1707006651893,-153.58945095,0.00030926,7]
[313244414,1707006651903,-3432.62216155,0.00031,5]
[313244415,1707006651912,-7096.00135958,0.00031,4]
[313244416,1707006651921,-367.720734,0.00031,4]
[313244417,1707006651930,-521.43643421,0.00031,2]
[313244418,1707006651939,-2011.24,0.00031,2]
[313244419,1707006651949,-318.02,0.00031,2]
[313244420,1707006651958,-153.04633665,0.00031079,2]
[313244421,1707006651968,-497.25936062,0.00031233,2]
[313244422,1707006651977,-167.0,0.00031246,2]
[313244423,1707006651986,-318.02,0.0003126,2]
[313244424,1707006651995,-150.0,0.00031291,2]
[313244425,1707006652004,-921.91009206,0.00031408,3]
[313244426,1707006652057,-6803.07556095,0.00031408,3]
[313244427,1707006652070,-506.70909012,0.00031408,3]
[313244428,1707006652081,-2667.30493299,0.00031408,3]
[313244429,1707006652091,-155.0,0.00031507,2]
[313244430,1707006652100,-444.0,0.00031644,5]
[313244431,1707006652109,-180.0,0.00031644,2]
[313244432,1707006652118,-223.73,0.00031644,2]
[313244433,1707006652127,-660.95608881,0.00031734,2]
[313244434,1707006652150,-500.0,0.00027713,2]
[313244435,1707006652160,-5139.04391119,0.00031734,2]
[313244436,1707006652169,-3327.54143325,0.00031734,2]
[313244437,1707006652178,-3116.49657769,0.000318,3]
[313244438,1707006652190,-18252.97645321,0.000318,3]
[313244439,1707006652202,-643.97892178,0.000318,3]
[313244440,1707006652214,-910.07126,0.000318,3]
[313244441,1707006652227,-2309.32890359,0.000318,3]
[313244442,1707006652244,-3389.87690034,0.000318,3]
[313244443,1707006652257,-366.49928082,0.000318,3]
[313244444,1707006652268,-7397.62689434,0.000318,3]
[313244445,1707006652279,-5781.88633881,0.000318,3]
[313244446,1707006652290,-2067.30774244,0.000318,3]
[313244447,1707006652309,-500.0,0.00027713,2]
[313244448,1707006652320,-313.05,0.000318,3]
[313244449,1707006652331,-8775.83091719,0.000318,3]
[313244450,1707006676491,163.7683,0.00022419,2]
[313244451,1707006686023,659.421,0.00022419,2]
[313244452,1707006692183,610.1887124,0.00021958,2]
[313244453,1707006702067,3194.07254394,0.00021615,2]
[313244454,1707006728231,5000.0,0.00022419,2]
[313244455,1707006794184,212.64845747,0.00022419,2]
[313244456,1707006914455,155.0,0.000225,2]
[313244457,1707006916846,159.95965532,0.00022403,2]
[313244458,1707006924183,496.98845256,0.000225,2]
[313244459,1707006929513,155.0,0.000225,2]
[313244460,1707006954074,284.30049318,0.000225,2]
[313244461,1707006957844,204.00917181,0.000225,2]
[313244462,1707006959205,155.0,0.000225,2]
[313244463,1707006961800,150.0,0.000225,2]
[313244464,1707006961865,150.0,0.000225,2]
[313244465,1707006962473,150.0,0.000225,2]
[313244466,1707006975212,296.59714991,0.000225,2]
[313244467,1707006975849,203.60629871,0.000225,2]
[313244468,1707007009910,408.13209907,0.000225,2]
[313244505,1707007266640,639.70936877,0.00015452,2]
[313244506,1707007327345,159.95965531,0.00022412,2]
[313244507,1707007504077,150.0,0.00022493,2]
[313244508,1707007682137,300.0,0.000225,2]
[313244509,1707007697811,159.95965531,0.00022412,2]
[313244517,1707007831379,-155.0,0.00022501,2]
[313244518,1707007831389,-155.37563385,0.00022501,2]
[313244519,1707007831399,-240.1917398,0.00022501,2]
[313244520,1707007831408,-236.2516346,0.00022512,2]
[313244521,1707007831418,-1120.20744338,0.00022513,2]
[313244522,1707007831435,-4577.0832644,0.00022513,2]
[313244523,1707007831447,-1029.57776682,0.00022513,2]
[313244524,1707007831460,-3129.09071573,0.00022513,2]
[313244525,1707007831489,-4063.29195687,0.00022513,2]
[313244526,1707007831500,-1477.53273109,0.00022513,2]
[313244527,1707007831511,-2197.2664254,0.00022513,2]
[313244528,1707007831546,-1339.06489141,0.00022513,2]
[313244529,1707007831558,-255.97559429,0.00022513,2]
[313244530,1707007831569,-316.617,0.00022513,2]
[313244531,1707007831656,-400.08481297,0.00022513,2]
[313244532,1707007831668,-8555.31363017,0.00022513,2]
[313244566,1707007837440,-419.4494577,0.00022501,2]
[313244569,1707007837501,-335.79546006,0.00022501,2]
[313244570,1707007837513,-606.78824737,0.00022501,2]
[313244571,1707007837524,-578.925,0.00022501,2]
[313244572,1707007837537,-1317.0138514,0.00022501,2]
[313244573,1707007837548,-404.60062298,0.00022501,2]
[313244574,1707007837559,-684.53517589,0.00022501,2]
[313244575,1707007837569,-668.6549,0.00022501,2]
[313244576,1707007837584,-623.31486525,0.00022501,2]
[313244577,1707007837615,-1966.6757388,0.00022501,2]
[313244578,1707007837627,-1001.34415973,0.00022501,2]
[313244579,1707007837637,-776.8687446,0.00022501,2]
[313244580,1707007837648,-861.34526864,0.00022501,2]
[313244581,1707007837659,-367.06866657,0.00022501,2]
[313244582,1707007837674,-2500.0,0.00022501,2]
[313244583,1707007837733,-812.93309181,0.00022501,2]
[313244584,1707007837745,-422.4746518,0.00022501,2]
[313244600,1707007840033,-1112.09992099,0.00022501,2]
[313244601,1707007840877,-48724.60155351,0.00022501,2]
[313244602,1707007840887,-719.45,0.00022513,2]
[313244603,1707007840896,-12241.74035953,0.00022513,2]
[313244604,1707007840906,-1013.985,0.00022513,2]
[313244605,1707007840915,-41415.76329044,0.00022515,2]
[313244606,1707007840924,-361.06396576,0.00022516,2]
[313244607,1707007840933,-300.0,0.00022518,2]
[313244608,1707007840942,-167.92454049,0.00022518,2]
[313244609,1707007840951,-27994.77495989,0.00022805,2]
[313244610,1707007840961,-1442.88299633,0.00022805,2]
[313244611,1707007840969,-81293.53694233,0.00022805,2]
[313244612,1707007840978,-212.28,0.00022872,2]
[313244613,1707007840987,-290.51872306,0.00023,2]
[313244614,1707007840996,-1466.36,0.00023,2]
[313244615,1707007841005,-1383.7,0.00023,2]
[313244616,1707007841013,-336.15,0.00023531,2]
[313244617,1707007841021,-20109.33,0.00023705,2]
[313244618,1707007841029,-1009.06,0.00023708,2]
[313244619,1707007841037,-205.8399,0.00023708,2]
[313244620,1707007841046,-75000.0,0.00023808,15]
[313244621,1707007841055,-163.64,0.00023852,2]
[313244622,1707007841064,-297.28761012,0.00023853,2]
[313244623,1707007841074,-499.99,0.00023953,2]
[313244624,1707007841083,-201.81401638,0.00024,2]
[313244625,1707007841092,-2325.42076986,0.00024382,2]
[313244626,1707007841101,-4255.31741538,0.00024382,2]
[313244627,1707007841110,-190.97652873,0.00024383,2]
[313244628,1707007841120,-583.2561244,0.00024383,2]
[313244629,1707007841129,-17094.15,0.00024384,2]
[313244630,1707007841139,-420.0,0.00024438,2]
[313244631,1707007841148,-159.95965531,0.0002445,2]
[313244632,1707007841157,-2500.0,0.00024658,3]
[313244633,1707007841167,-250.0,0.00024861,2]
[313244634,1707007841176,-200.0,0.00024922,2]
[313244635,1707007841186,-166.33,0.00024931,2]
[313244636,1707007841196,-1589.2290575,0.00025,2]
[313244637,1707007841205,-167.96342031,0.00025,2]
[313244638,1707007841214,-159.2692348,0.00025,2]
[313244640,1707007841223,-1906.13148875,0.00025,2]
[313244642,1707007841232,-2406.15689477,0.00025,2]
[313244644,1707007841241,-936.77222899,0.00025,2]
[313244646,1707007841250,-202.73608472,0.00025,2]
[313244648,1707007841259,-304.55413584,0.00025,2]
[313244650,1707007841268,-300.0,0.0002503,2]
[313244653,1707007841277,-212.28,0.00025136,2]
[313244655,1707007841288,-336.15,0.00025175,2]
[313244658,1707007841298,-800.0,0.00025176,2]
[313244661,1707007841307,-950.0,0.00025208,2]
[313244664,1707007841317,-839.0,0.00025208,2]
[313244667,1707007841326,-1862.0,0.00025208,2]
[313244670,1707007841335,-705.0,0.00025208,2]
[313244672,1707007841344,-530.0,0.00025208,2]
[313244673,1707007841353,-1236.0,0.00025208,2]
[313244674,1707007841362,-1258.212,0.00025208,2]
[313244675,1707007841372,-1934.0,0.00025208,2]
[313244676,1707007841382,-150.0,0.00025208,2]
[313244677,1707007841391,-1145.543,0.00025208,2]
[313244678,1707007841401,-859.0,0.00025208,2]
[313244679,1707007841411,-320.0,0.00025208,2]
[313244680,1707007841420,-342.0,0.00025208,2]
[313244681,1707007841429,-198.0,0.00025208,2]
[313244682,1707007841438,-157.0,0.00025208,2]
[313244683,1707007841449,-214.556,0.00025208,2]
[313244684,1707007841459,-158.587,0.00025208,2]
[313244685,1707007841469,-250.0,0.00025208,2]
[313244686,1707007841478,-19783.0,0.00025208,2]
[313244687,1707007841487,-2282.0,0.00025208,2]
[313244688,1707007841496,-2917.0,0.00025208,2]
[313244689,1707007841505,-4195.0,0.00025208,2]
[313244690,1707007841514,-1034.0,0.00025208,2]
[313244691,1707007841524,-1163.69,0.00025443,2]
[313244692,1707007841534,-841.0,0.000255,2]
[313244693,1707007841543,-329.89,0.00025793,2]
[313244694,1707007841552,-7918.47641999,0.00025798,2]
[313244695,1707007841561,-349.7261996,0.00025798,2]
[313244696,1707007841570,-155.59844655,0.00025798,2]
[313244697,1707007841580,-167.0,0.00026057,2]
[313244698,1707007841589,-150.0,0.00026079,2]
[313244699,1707007841599,-6868.85131928,0.00026322,2]
[313244700,1707007841607,-300.0,0.000264,2]
[313244701,1707007841617,-159.95965531,0.00026489,2]
[313244702,1707007841627,-425.945435,0.000265,2]
[313244703,1707007841636,-587.0,0.00026542,2]
[313244704,1707007841646,-329.89,0.00026705,2]
[313244705,1707007841656,-336.15,0.00026819,2]
[313244706,1707007841665,-378.93394646,0.00027,2]
[313244707,1707007841675,-500.0,0.00027,7]
[313244708,1707007841685,-167.0,0.00027132,2]
[313244709,1707007841697,-384.0,0.00027159,2]
[313244710,1707007841706,-155.0,0.00027397,2]
[313244711,1707007841717,-2499.93,0.00027397,2]
[313244712,1707007841726,-538.62,0.00027397,2]
[313244713,1707007841736,-212.28,0.000274,2]
[313244714,1707007841746,-2499.93,0.00027556,2]
[313244715,1707007841756,-1301.11,0.00027562,2]
[313244716,1707007841766,-191.26,0.00027562,2]
[313244717,1707007841775,-2000.0,0.00027612,3]
[313244718,1707007841788,-4541.24986505,0.00027612,2]
[313244719,1707007841797,-152.94827905,0.00027612,2]
[313244720,1707007841807,-329.89,0.00027617,2]
[313244721,1707007841817,-317.49900821,0.00027682,2]
[313244722,1707007841826,-187.47113411,0.000277,2]
[313244723,1707007841835,-1301.11,0.00027707,2]
[313244724,1707007841845,-244.01749982,0.00027709,2]
[313244725,1707007841856,-273.663813,0.00027709,2]
[313244726,1707007841866,-582.34359272,0.00027709,2]
[313244727,1707007841876,-366.49029869,0.00027709,2]
[313244728,1707007841887,-500.0,0.00027709,2]
[313244729,1707007841897,-500.0,0.00027709,2]
[313244730,1707007841906,-500.0,0.00027709,2]
[313244731,1707007841915,-337.68491183,0.00027709,2]
[313244732,1707007841924,-204.18721242,0.00027709,2]
[313244733,1707007841933,-155.0,0.0002771,2]
[313244734,1707007841943,-178.19299601,0.0002771,2]
[313244735,1707007841952,-310.17962013,0.0002771,2]
[313244736,1707007841961,-1062.12667326,0.0002771,2]
[313244737,1707007841970,-157.34868034,0.0002771,2]
[313244738,1707007841981,-587036.53212736,0.0002771,2]
[313244739,1707007841990,-49179.22886231,0.00027711,3]
[313244740,1707007841999,-2754.2862681,0.00027711,2]
[313244741,1707007842008,-371.06691339,0.00027711,2]
[313244742,1707007842017,-501.74130467,0.00027711,2]
[313244743,1707007842027,-160.49859789,0.00027711,2]
[313244744,1707007842037,-155.40755986,0.00027711,2]
[313244745,1707007842046,-448186.36874017,0.00027711,2]
[313244746,1707007842056,-196.87082677,0.00027712,2]
[313244747,1707007842065,-168.37993501,0.00027712,2]
[313244748,1707007842074,-2499.93,0.00027714,2]
[313244749,1707007842084,-1301.11,0.00027852,2]
[313244750,1707007842093,-2499.93,0.00027872,2]
[313244751,1707007842102,-1301.11,0.00027997,2]
[313244752,1707007842112,-691.4404306,0.00028,2]
[313244753,1707007842122,-119358.53460271,0.00028,2]
[313244754,1707007842132,-200.0,0.00028,2]
[313244755,1707007842141,-2499.93,0.0002803,2]
[313244756,1707007842150,-200.0,0.00028037,2]
[313244757,1707007842160,-1301.11,0.00028142,2]
[313244758,1707007842169,-2499.93,0.00028189,2]
[313244759,1707007842178,-841.56655638,0.000282,2]
[313244760,1707007842188,-167.0,0.00028208,2]
[313244761,1707007842197,-950.0,0.00028208,2]
[313244762,1707007842207,-839.0,0.00028208,2]
[313244763,1707007842216,-695.788,0.00028208,2]
[313244764,1707007842226,-215.751,0.00028208,2]
[313244766,1707007842236,-705.0,0.00028208,2]
[313244767,1707007842247,-1232.0,0.00028208,2]
[313244768,1707007842257,-1250.0,0.00028208,2]
[313244769,1707007842267,-150.0,0.00028208,2]
[313244770,1707007842276,-859.0,0.00028208,2]
[313244771,1707007842286,-1138.0,0.00028208,2]
[313244772,1707007842295,-320.0,0.00028208,2]
[313244773,1707007842304,-305.967,0.00028208,2]
[313244774,1707007842313,-150.0,0.00028208,2]
[313244775,1707007842323,-19783.0,0.00028208,2]
[313244776,1707007842332,-2282.0,0.00028208,2]
[313244777,1707007842342,-2917.0,0.00028208,2]
[313244778,1707007842352,-1616.247,0.00028208,2]
[313244779,1707007842361,-1034.0,0.00028208,2]
[313244780,1707007842371,-1301.11,0.00028287,2]
[313244781,1707007842382,-800.0,0.00028323,2]
[313244782,1707007842392,-2499.93,0.00028347,2]
[313244783,1707007842401,-1301.11,0.00028432,2]
[313244784,1707007842410,-336.15,0.00028463,2]
[313244785,1707007842418,-150.0,0.00028504,2]
[313244786,1707007842428,-150.0,0.00028504,2]
[313244787,1707007842436,-2499.93,0.00028505,2]
[313244788,1707007842445,-159.95965531,0.00028527,2]
[313244789,1707007842454,-329.89,0.0002853,2]
[313244790,1707007842463,-1301.11,0.00028577,2]
[313244791,1707007842472,-2499.93,0.00028664,2]
[313244792,1707007842481,-277.0,0.000287,2]
[313244793,1707007842490,-1301.11,0.00028723,2]
[313244794,1707007842499,-4541.24986505,0.00028729,2]
[313244795,1707007842508,-155.0,0.00028767,2]
[313244796,1707007842517,-2499.93,0.00028822,2]
[313244797,1707007842526,-765.0,0.00028828,2]
[313244798,1707007842537,-1301.11,0.00028868,2]
[313244799,1707007842546,-260.92996356,0.00028913,2]
[313244800,1707007842555,-1301.11,0.00029013,2]
[313244801,1707007842563,-457.0,0.00029104,5]
[313244802,1707007842572,-1301.11,0.00029158,2]
[313244803,1707007842582,-167.0,0.00029283,2]
[313244804,1707007842590,-1301.11,0.00029303,2]
[313244805,1707007842599,-329.89,0.00029442,2]
[313244806,1707007842608,-1301.11,0.00029448,2]
[313244807,1707007842617,-365.95717832,0.000295,2]
[313244808,1707007842626,-155.0,0.000295,3]
[313244809,1707007842635,-1301.11,0.00029593,2]
[313244810,1707007842645,-212.28,0.00029664,2]
[313244811,1707007842655,-1301.11,0.00029738,2]
[313244812,1707007842665,-176.11064698,0.000298,2]
[313244813,1707007842674,-4541.24986505,0.00029846,2]
[313244814,1707007842682,-1301.11,0.00029883,2]
[313244815,1707007842692,-1428.68628545,0.000299,2]
[313244816,1707007842701,-206.0,0.00029991,2]
[313244817,1707007842710,-909.10790134,0.0003,4]
[313244818,1707007842719,-157.67070134,0.0003,4]
[313244819,1707007842728,-155.0,0.0003,4]
[313244820,1707007842737,-3000.0,0.0003,2]
[313244821,1707007842746,-155.0,0.0003,4]
[313244822,1707007842755,-359.27275681,0.0003,2]
[313244823,1707007842764,-8876.15774637,0.0003,4]
[313244824,1707007842775,-1813.3582863,0.0003,4]
[313244825,1707007842786,-155.0,0.0003,2]
[313244826,1707007842799,-2649.70592679,0.0003,4]
[313244827,1707007842809,-163.80797493,0.0003,4]
[313244829,1707007842818,-13819.95398378,0.0003,2]
[313244830,1707007842828,-694.45056463,0.0003,2]
[313244831,1707007842838,-451.91910695,0.0003,2]
[313244832,1707007842847,-817.55928585,0.0003,4]
[313244833,1707007842857,-19104.02955451,0.0003,4]
[313244834,1707007842868,-400.62626616,0.0003,4]
[313244835,1707007842878,-835.44169672,0.0003,2]
[313244836,1707007842887,-203.0,0.0003,2]
[313244837,1707007842896,-531.473074,0.0003,2]
[313244838,1707007842906,-500.0,0.0003,2]
[313244839,1707007842916,-153.49,0.0003,2]
[313244840,1707007842926,-153.49,0.0003,2]
[313244841,1707007842936,-153.49,0.0003,2]
[313244842,1707007842945,-153.49,0.0003,2]
[313244843,1707007842955,-1301.11,0.00030028,2]
[313244844,1707007842964,-336.15,0.00030107,2]
[313244845,1707007842974,-150.0,0.00030137,2]
[313244846,1707007842983,-155.0,0.00030137,2]
[313244847,1707007842992,-1301.11,0.00030173,2]
[313244848,1707007843001,-191.26,0.00030318,2]
[313244849,1707007843011,-1301.11,0.00030318,2]
[313244850,1707007843020,-329.89,0.00030354,2]
[313244851,1707007843029,-167.0,0.00030358,2]
[313244852,1707007843040,-5000.0,0.00030565,2]
[313244853,1707007843050,-159.95965531,0.00030565,2]
[313244854,1707007843059,-500.0,0.00030664,2]
[313244855,1707007843068,-500.0,0.00030664,2]
[313244856,1707007843078,-500.0,0.00030664,2]
[313244857,1707007843087,-500.0,0.00030664,2]
[313244858,1707007843096,-500.0,0.00030664,2]
[313244859,1707007843105,-500.0,0.00030664,2]
[313244860,1707007843115,-500.0,0.00030664,2]
[313244861,1707007843124,-500.0,0.00030664,2]
[313244862,1707007843134,-500.0,0.00030664,2]
[313244863,1707007843143,-500.0,0.00030664,2]
[313244864,1707007843152,-500.0,0.00030664,2]
[313244865,1707007843161,-500.0,0.00030664,2]
[313244866,1707007843171,-500.0,0.00030664,2]
[313244867,1707007843181,-500.0,0.00030664,2]
[313244868,1707007843190,-500.0,0.00030664,2]
[313244869,1707007843200,-500.0,0.00030664,2]
[313244870,1707007843209,-500.0,0.00030664,2]
[313244871,1707007843218,-500.0,0.00030664,2]
[313244872,1707007843228,-500.0,0.00030664,2]
[313244873,1707007843237,-500.0,0.00030664,2]
[313244874,1707007843247,-500.0,0.00030664,2]
[313244875,1707007843257,-500.0,0.00030664,2]
[313244876,1707007843266,-500.0,0.00030664,2]
[313244877,1707007843276,-500.0,0.00030664,2]
[313244878,1707007843287,-500.0,0.00030664,2]
[313244879,1707007843297,-500.0,0.00030664,2]
[313244880,1707007843306,-500.0,0.00030664,2]
[313244881,1707007843316,-500.0,0.00030664,2]
[313244882,1707007843326,-500.0,0.00030664,2]
[313244883,1707007843335,-500.0,0.00030664,2]
[313244884,1707007843345,-500.0,0.00030664,2]
[313244885,1707007843354,-500.0,0.00030664,2]
[313244886,1707007843364,-500.0,0.00030664,2]
[313244887,1707007843372,-500.0,0.00030664,2]
[313244888,1707007843382,-500.0,0.00030664,2]
[313244889,1707007843391,-500.0,0.00030664,2]
[313244890,1707007843401,-500.0,0.00030664,2]
[313244891,1707007843411,-500.0,0.00030664,2]
[313244892,1707007843420,-500.0,0.00030664,2]
[313244893,1707007843429,-500.0,0.00030664,2]
[313244894,1707007843438,-500.0,0.00030664,2]
[313244895,1707007843448,-500.0,0.00030664,2]
[313244896,1707007843457,-500.0,0.00030664,2]
[313244897,1707007843466,-500.0,0.00030664,2]
[313244898,1707007843476,-500.0,0.00030664,2]
[313244899,1707007843485,-500.0,0.00030664,2]
[313244900,1707007843494,-500.0,0.00030664,2]
[313244901,1707007843504,-500.0,0.00030664,2]
[313244902,1707007843513,-500.0,0.00030664,2]
[313244903,1707007843523,-500.0,0.00030664,2]
[313244904,1707007843533,-500.0,0.00030664,2]
[313244905,1707007843667,-500.0,0.00030664,2]
[313244906,1707007843677,-500.0,0.00030664,2]
[313244907,1707007843686,-500.0,0.00030664,2]
[313244908,1707007843695,-500.0,0.00030664,2]
[313244909,1707007843705,-500.0,0.00030664,2]
[313244910,1707007843714,-500.0,0.00030664,2]
[313244911,1707007843723,-500.0,0.00030664,2]
[313244912,1707007843732,-500.0,0.00030664,2]
[313244913,1707007843741,-500.0,0.00030664,2]
[313244914,1707007843750,-500.0,0.00030664,2]
[313244915,1707007843760,-500.0,0.00030664,2]
[313244916,1707007843769,-500.0,0.00030664,2]
[313244917,1707007843778,-500.0,0.00030664,2]
[313244918,1707007843789,-500.0,0.00030664,2]
[313244919,1707007843801,-500.0,0.00030664,2]
[313244920,1707007843810,-500.0,0.00030664,2]
[313244921,1707007843819,-500.0,0.00030664,2]
[313244922,1707007843830,-500.0,0.00030664,2]
[313244923,1707007843840,-500.0,0.00030664,2]
[313244924,1707007843850,-500.0,0.00030664,2]
[313244925,1707007843859,-500.0,0.00030664,2]
[313244926,1707007843868,-500.0,0.00030664,2]
[313244927,1707007843878,-500.0,0.00030664,2]
[313244928,1707007843888,-500.0,0.00030664,2]
[313244929,1707007843897,-500.0,0.00030664,2]
[313244930,1707007843906,-500.0,0.00030664,2]
[313244931,1707007843915,-500.0,0.00030664,2]
[313244932,1707007843924,-500.0,0.00030664,2]
[313244933,1707007843933,-500.0,0.00030664,2]
[313244934,1707007843943,-500.0,0.00030664,2]
[313244935,1707007843952,-500.0,0.00030664,2]
[313244936,1707007843961,-500.0,0.00030664,2]
[313244937,1707007843970,-500.0,0.00030664,2]
[313244938,1707007843979,-500.0,0.00030664,2]
[313244939,1707007843988,-500.0,0.00030664,2]
[313244940,1707007843997,-500.0,0.00030664,2]
[313244941,1707007844007,-500.0,0.00030664,2]
[313244942,1707007844016,-500.0,0.00030664,2]
[313244943,1707007844025,-500.0,0.00030664,2]
[313244944,1707007844035,-500.0,0.00030664,2]
[313244945,1707007844044,-500.0,0.00030664,2]
[313244946,1707007844053,-500.0,0.00030664,2]
[313244947,1707007844062,-500.0,0.00030664,2]
[313244948,1707007844072,-500.0,0.00030664,2]
[313244949,1707007844082,-500.0,0.00030664,2]
[313244950,1707007844093,-500.0,0.00030664,2]
[313244951,1707007844102,-500.0,0.00030664,2]
[313244952,1707007844111,-500.0,0.00030664,2]
[313244953,1707007844120,-500.0,0.00030664,2]
[313244954,1707007844129,-500.0,0.00030664,2]
[313244955,1707007844139,-500.0,0.00030664,2]
[313244956,1707007844148,-500.0,0.00030664,2]
[313244957,1707007844159,-500.0,0.00030664,2]
[313244958,1707007844169,-500.0,0.00030664,2]
[313244959,1707007844179,-500.0,0.00030664,2]
[313244960,1707007844188,-500.0,0.00030664,2]
[313244961,1707007844197,-500.0,0.00030664,2]
[313244962,1707007844206,-500.0,0.00030664,2]
[313244963,1707007844215,-500.0,0.00030664,2]
[313244964,1707007844224,-500.0,0.00030664,2]
[313244965,1707007844234,-500.0,0.00030664,2]
[313244966,1707007844243,-500.0,0.00030664,2]
[313244967,1707007844252,-500.0,0.00030664,2]
[313244968,1707007844261,-500.0,0.00030664,2]
[313244969,1707007844270,-500.0,0.00030664,2]
[313244970,1707007844279,-500.0,0.00030664,2]
[313244971,1707007844289,-500.0,0.00030664,2]
[313244972,1707007844298,-500.0,0.00030664,2]
[313244973,1707007844307,-500.0,0.00030664,2]
[313244974,1707007844316,-500.0,0.00030664,2]
[313244975,1707007844325,-500.0,0.00030664,2]
[313244976,1707007844334,-500.0,0.00030664,2]
[313244977,1707007844343,-500.0,0.00030664,2]
[313244978,1707007844351,-500.0,0.00030664,2]
[313244979,1707007844360,-500.0,0.00030664,2]
[313244980,1707007844369,-500.0,0.00030664,2]
[313244981,1707007844378,-500.0,0.00030664,2]
[313244982,1707007844387,-500.0,0.00030664,2]
[313244983,1707007844396,-500.0,0.00030664,2]
[313244984,1707007844405,-500.0,0.00030664,2]
[313244985,1707007844414,-500.0,0.00030664,2]
[313244986,1707007844423,-500.0,0.00030664,2]
[313244987,1707007844433,-500.0,0.00030664,2]
[313244988,1707007844441,-500.0,0.00030664,2]
[313244989,1707007844450,-500.0,0.00030664,2]
[313244990,1707007844459,-500.0,0.00030664,2]
[313244991,1707007844468,-500.0,0.00030664,2]
[313244992,1707007844477,-500.0,0.00030664,2]
[313244993,1707007844486,-500.0,0.00030664,2]
[313244994,1707007844495,-500.0,0.00030664,2]
[313244995,1707007844504,-500.0,0.00030664,2]
[313244996,1707007844513,-500.0,0.00030664,2]
[313244997,1707007844522,-500.0,0.00030664,2]
[313244998,1707007844531,-500.0,0.00030664,2]
[313244999,1707007844541,-500.0,0.00030664,2]
[313245000,1707007844550,-500.0,0.00030664,2]
[313245001,1707007844559,-500.0,0.00030664,2]
[313245002,1707007844568,-500.0,0.00030664,2]
[313245003,1707007844577,-500.0,0.00030664,2]
[313245004,1707007844586,-500.0,0.00030665,2]
[313245005,1707007844595,-500.0,0.00030665,2]
[313245006,1707007844604,-500.0,0.00030665,2]
[313245007,1707007844613,-500.0,0.00030665,2]
[313245008,1707007844622,-500.0,0.00030665,2]
[313245009,1707007844631,-500.0,0.00030665,2]
[313245010,1707007844640,-500.0,0.00030665,2]
[313245011,1707007844649,-500.0,0.00030665,2]
[313245012,1707007844660,-500.0,0.00030665,2]
[313245013,1707007844669,-500.0,0.00030665,2]
[313245014,1707007844678,-500.0,0.00030665,2]
[313245015,1707007844687,-500.0,0.00030665,2]
[313245016,1707007844696,-500.0,0.00030665,2]
[313245017,1707007844705,-500.0,0.00030665,2]
[313245018,1707007844715,-500.0,0.00030665,2]
[313245019,1707007844724,-500.0,0.00030665,2]
[313245020,1707007844734,-500.0,0.00030665,2]
[313245021,1707007844744,-500.0,0.00030665,2]